Workbook

Sheet Sheet1
B1: CITY NAME | C1: NOTICE OF PUBLIC HEARING -PROPOSED PROPERTY TAX LEVY | H1: CITY CODE
B2: =IF(ISBLANK([1]CERT!$D$5),"",[1]CERT!$D$5) -> Cumming | C2: Fiscal Year July 1, 2020 - June 30, 2021 | H2: =IF(ISBLANK([1]CERT!$L$3),"",[1]CERT!$L$3) -> 91-871
B3: The City Council will conduct a public hearing on the proposed Fiscal Year City property tax levy as follows:
B4: Meeting Date: | C4: Meeting Time: | D4: Meeting Location:
B5: 2020-01-27 | C5: 7:00 p.m. | D5: City Hall, 649 N. 44th Street, Cumming, Iowa
B6: At the public hearing any resident or taxpayer may present objections to, or arguments in favor of the proposed tax levy.
B7: After adoption of the proposed tax levy, the Council will publish notice and hold a hearing on the proposed city budget.
B8: City Web Site: https://www.cumming-iowa.com | F8: City Phone Number: 515-981-9214
B9: Iowa Department of Management | E9: Current Year Certified Property Tax | F9: Budget Year Effective Property Tax | G9: Budget Year Proposed Maximum Property Tax | H9: Annual
E10: 2019/2020 | F10: 2020/2021** | G10: 2020/2021 | H10: % CHG
B11: Regular Taxable Valuation | D11: 1 | E11: =IFERROR(VLOOKUP([1]Start!$M$1,Max_Levy_Lookup,3,0),0) -> 27587836 | F11: 25645041 | G11: 25645041
B12: Tax Levies:
B13: Regular General | D13: 2 | E13: =IFERROR(VLOOKUP([1]Start!$M$1,Max_Levy_Lookup,4,0),0) -> 223461 | F13: =E13 -> 223461 | G13: 207725 | H13: =IF(ISERROR(I13),"",IF(I13>8.1,"REDUCE LEVY","")) -> 
B14: Contract for Use of Bridge | D14: 3 | E14: =IFERROR(VLOOKUP([1]Start!$M$1,Max_Levy_Lookup,5,0),0) -> 0 | F14: =E14 -> 0 | H14: =IF(ISERROR(I14),"",IF(I14>0.675,"REDUCE LEVY","")) -> 
B15: Opr & Maint Publicly Owned Transit | D15: 4 | E15: =IFERROR(VLOOKUP([1]Start!$M$1,Max_Levy_Lookup,6,0),0) -> 0 | F15: 0 | H15: =IF(ISERROR(I15),"",IF(I15>0.95,"REDUCE LEVY","")) -> 
B16: Rent, Ins. Maint. Of Non-Owned Civ. Ctr. | D16: 5 | E16: =IFERROR(VLOOKUP([1]Start!$M$1,Max_Levy_Lookup,7,0),0) -> 0 | F16: 0
B17: Opr & Maint of City-Owned Civic Center | D17: 6 | E17: =IFERROR(VLOOKUP([1]Start!$M$1,Max_Levy_Lookup,8,0),0) -> 0 | F17: 0 | H17: =IF(ISERROR(I17),"",IF(I17>0.135,"REDUCE LEVY","")) -> 
B18: Planning a Sanitary Disposal Project | D18: 7 | E18: =IFERROR(VLOOKUP([1]Start!$M$1,Max_Levy_Lookup,9,0),0) -> 0 | F18: 0 | H18: =IF(ISERROR(I18),"",IF(I18>0.0675,"REDUCE LEVY","")) -> 
B19: Liability, Property & Self-Insurance Costs | D19: 8 | E19: =IFERROR(VLOOKUP([1]Start!$M$1,Max_Levy_Lookup,10,0),0) -> 4000 | F19: 4000 | G19: 6000
B20: Support of Local Emer. Mgmt. Commission | D20: 9 | E20: =IFERROR(VLOOKUP([1]Start!$M$1,Max_Levy_Lookup,11,0),0) -> 0 | F20: 0
B21: Emergency | D21: 10 | E21: =IFERROR(VLOOKUP([1]Start!$M$1,Max_Levy_Lookup,12,0),0) -> 7449 | F21: 7449 | G21: 6925 | H21: =IF(ISERROR(I21),"",IF(I21>0.27,"REDUCE LEVY","")) -> 
B22: Police & Fire Retirement | D22: 11 | E22: =IFERROR(VLOOKUP([1]Start!$M$1,Max_Levy_Lookup,13,0),0) -> 0 | F22: 0
B23: FICA & IPERS | D23: 12 | E23: =IFERROR(VLOOKUP([1]Start!$M$1,Max_Levy_Lookup,14,0),0) -> 13500 | F23: 13500 | G23: 15000
B24: Other Employee Benefits | D24: 13 | E24: =IFERROR(VLOOKUP([1]Start!$M$1,Max_Levy_Lookup,15,0),0) -> 6240 | F24: 6240 | G24: 7200
B25: *Total 384.15A Maximum Tax Levy | D25: 14 | E25: =SUM(E13:E24) -> 254650 | F25: =SUM(F12:F24) -> 254650 | G25: =SUM(G12:G24) -> 242850 | H25: =IFERROR((G25-E25)/E25,0) -> -0.04633811113
B26: Calculated 384.15A MaximumTax Rate | D26: 15 | E26: =IF(E11>0, ROUND(E25/E11*1000,5),0) -> 9.23052 | F26: =IF(F11>0, ROUND(F25/F11*1000,5),0) -> 9.9298 | G26: =IFERROR(IF(G11>0, ROUND(G25/G11*1000,5),0),0) -> 9.46967
B27: Explanation of significant increases in the budget: None
B28: If applicable, the above notice also available online at: https://www.cumming-iowa.com, https://facebook.com/cummingdeputyclerk
B29: *Total city tax rate will also include voted general fund levy, debt service levy, and capital improvement reserve levy
B30: **Budget year effective propert tax rate is the rate that would be assessed for these levies if the dollars requested is not changed in the coming budget year
